fUSD/lending_fUSD_20241106
["ID","MTS","AMOUNT","RATE_DAILY","PERIOD"]
[341506866,1730934635218,-708.67,0.00038629,14]
[341506867,1730934635228,-500.0,0.00038629,14]
[341506868,1730934635238,-500.0,0.00038629,14]
[341506869,1730934635248,-500.0,0.00038629,14]
[341506870,1730934635258,-3752.4,0.00038629,14]
[341506871,1730934635268,-500.0,0.00038629,14]
[341506872,1730934635278,-500.0,0.00038629,14]
[341506873,1730934635286,-500.0,0.00038629,14]
[341506874,1730934635296,-922.46,0.00038629,14]
[341506875,1730934635308,-923.28,0.00038629,14]
[341506876,1730934635318,-500.0,0.00038629,14]
[341506877,1730934635329,-500.0,0.00038629,14]
[341506878,1730934635338,-500.0,0.00038629,14]
[341506879,1730934635348,-500.0,0.00038629,14]
[341506880,1730934635358,-1237.57,0.00038629,14]
[341506881,1730934635368,-500.0,0.00038629,14]
[341506882,1730934635378,-7500.0,0.00038629,120]
[341506883,1730934635388,-500.0,0.00038629,14]
[341506884,1730934635398,-500.0,0.00038629,14]
[341506885,1730934635407,-9834.79,0.00038629,14]
[341506886,1730934635417,-500.0,0.00038629,14]
[341506887,1730934635426,-500.0,0.00038629,14]
[341506888,1730934635436,-403.74158076,0.00038629,14]
[341506939,1730934639195,-832.57841924,0.00038629,14]
[341506940,1730934639204,-500.0,0.00038629,14]
[341506941,1730934639214,-500.0,0.00038629,14]
[341506942,1730934639223,-1272.55,0.00038629,14]
[341506943,1730934639232,-1334.45,0.00038629,14]
[341506944,1730934639242,-500.0,0.00038629,14]
[341506945,1730934639251,-500.0,0.00038629,14]
[341506947,1730934639383,-500.0,0.00038629,14]
[341506948,1730934639393,-500.0,0.00038629,14]
[341506949,1730934639402,-500.0,0.00038629,14]
[341506950,1730934639411,-500.0,0.00038629,14]
[341506951,1730934639421,-1241.44,0.00038629,14]
[341506952,1730934639430,-500.0,0.00038629,14]
[341506953,1730934639440,-267.55740242,0.00038629,14]
[341506954,1730934639452,-954.05259758,0.00038629,14]
[341506955,1730934639461,-1784.47718242,0.00038629,14]
[341506956,1730934639472,-653.14281758,0.00038629,14]
[341506957,1730934639483,-295.25718242,0.00038629,14]
[341506958,1730934639494,-204.74281758,0.00038629,14]
[341506959,1730934639504,-510.22479096,0.00038629,14]
[341506960,1730934639513,-500.0,0.00038629,14]
[341506961,1730934639523,-239.27853624,0.00038629,14]
[341506962,1730934639535,-260.72146376,0.00038629,14]
[341506963,1730934639544,-12.73853624,0.00038629,14]
[341506964,1730934639569,-348.23005832,0.00038629,14]
[341506965,1730934639985,-500.0,0.00038618,15]
[341506966,1730934639995,-580.20520703,0.00038618,15]
[341506967,1730934640004,-319.98140544,0.00038629,14]
[341506968,1730934640014,-589.7,0.00038629,14]
[341506969,1730934640023,-500.0,0.00038629,14]
[341506970,1730934640032,-500.0,0.00038629,14]
[341506971,1730934640042,-500.0,0.00038629,14]
[341506972,1730934640052,-5292.02,0.00038629,14]
[341506973,1730934640061,-500.0,0.00038629,14]
[341506974,1730934640071,-500.0,0.00038629,14]
[341506975,1730934640080,-500.0,0.00038629,14]
[341506976,1730934640089,-500.0,0.00038629,14]
[341506977,1730934640099,-550.07,0.00038629,14]
[341506978,1730934640108,-500.0,0.00038629,14]
[341506979,1730934640122,-248.53222552,0.00038629,14]
[341506992,1730934642578,-500.0,0.0003862,14]
[341506993,1730934642588,-500.0,0.0003862,14]
[341506994,1730934642599,-2344.38,0.0003862,14]
[341506995,1730934642609,-500.0,0.0003862,14]
[341506996,1730934642619,-251.46777448,0.00038629,14]
[341506997,1730934642629,-1860.89,0.00038629,14]
[341506998,1730934642639,-29.40822537,0.00038629,14]
[341506999,1730934642651,-689.54177463,0.00038629,14]
[341507000,1730934642662,-710.15999635,0.00038629,120]
[341507001,1730934642712,-1289.84000365,0.00038629,120]
[341507002,1730934642722,-500.0,0.00038629,14]
[341507003,1730934642731,-500.0,0.00038629,14]
[341507004,1730934642741,-1652.85,0.00038629,14]
[341507005,1730934642750,-500.0,0.00038629,14]
[341507006,1730934642760,-500.0,0.00038629,14]
[341507007,1730934642770,-523.71344033,0.00038629,14]
[341507008,1730934642781,-2215.10655967,0.00038629,14]
[341507009,1730934642791,-2909.74,0.00038629,14]
[341507010,1730934642800,-500.0,0.00038629,14]
[341507011,1730934642812,-500.0,0.00038629,14]
[341507012,1730934642822,-1258.42,0.00038629,14]
[341507013,1730934642832,-2687.4618565,0.00038629,14]
[341507014,1730934642863,-3355.2781435,0.00038629,14]
[341507015,1730934642873,-500.0,0.00038629,14]
[341507016,1730934642883,-516.92142147,0.00038629,14]
[341507017,1730934642893,-500.0,0.00038629,14]
[341507018,1730934642903,-500.0,0.00038629,14]
[341507019,1730934642913,-2398.61,0.00038629,14]
[341507021,1730934642924,-500.0,0.00038629,14]
[341507022,1730934642934,-659.98,0.00038629,14]
[341507024,1730934642944,-1160.44,0.00038629,7]
[341507026,1730934642955,-500.0,0.00038629,14]
[341507028,1730934642964,-500.0,0.00038629,14]
[341507030,1730934642974,-500.0,0.00038629,14]
[341507032,1730934642983,-500.0,0.00038629,14]
[341507034,1730934642993,-500.0,0.00038629,14]
[341507036,1730934643003,-1024.31,0.00038629,14]
[341507038,1730934643013,-500.0,0.00038629,10]
[341507040,1730934643022,-500.0,0.00038629,14]
[341507042,1730934643032,-519.18223851,0.00038629,14]
[341507044,1730934643042,-1320.89,0.00038629,14]
[341507046,1730934643051,-500.0,0.00038629,14]
[341507048,1730934643063,-500.0,0.00038629,14]
[341507050,1730934643074,-500.0,0.00038629,14]
[341507053,1730934643084,-602.8,0.00038629,14]
[341507055,1730934643093,-1827.69,0.00038629,14]
[341507058,1730934643103,-500.0,0.0003863,14]
[341507061,1730934643114,-500.0,0.0003863,14]
[341507063,1730934643127,-500.0,0.0003863,14]
[341507065,1730934643136,-500.0,0.0003863,14]
[341507066,1730934643145,-500.0,0.0003863,14]
[341507069,1730934643155,-500.0,0.0003863,14]
[341507070,1730934643166,-500.0,0.0003863,14]
[341507073,1730934643176,-500.0,0.0003863,14]
[341507074,1730934643185,-525.19,0.0003863,14]
[341507076,1730934643196,-500.0,0.0003863,14]
[341507078,1730934643206,-500.0,0.0003863,14]
[341507081,1730934643215,-500.0,0.0003863,14]
[341507083,1730934643225,-500.0,0.0003863,14]
[341507085,1730934643235,-500.0,0.0003863,14]
[341507087,1730934643244,-500.0,0.0003863,14]
[341507089,1730934643254,-1292.66,0.0003863,14]
[341507091,1730934643263,-500.0,0.0003863,14]
[341507093,1730934643273,-500.0,0.0003863,14]
[341507094,1730934643283,-500.0,0.0003863,14]
[341507095,1730934643292,-500.0,0.0003863,14]
[341507096,1730934643301,-500.0,0.0003863,14]
[341507097,1730934643312,-500.0,0.0003863,14]
[341507098,1730934643322,-500.0,0.0003863,14]
[341507099,1730934643331,-500.0,0.0003863,14]
[341507100,1730934643341,-500.0,0.0003863,14]
[341507101,1730934643350,-500.0,0.0003863,14]
[341507102,1730934643360,-542.09,0.0003863,14]
[341507103,1730934643370,-500.0,0.0003863,14]
[341507104,1730934643379,-500.0,0.0003863,14]
[341507105,1730934643389,-500.0,0.0003863,14]
[341507106,1730934643398,-500.0,0.0003863,14]
[341507107,1730934643409,-1008.12,0.0003863,14]
[341507108,1730934643420,-500.0,0.0003863,14]
[341507109,1730934643432,-788.5,0.0003863,14]
[341507110,1730934643441,-500.0,0.0003863,14]
[341507111,1730934643451,-500.0,0.0003863,14]
[341507112,1730934643460,-500.0,0.0003863,14]
[341507113,1730934643470,-1205.55,0.0003863,14]
[341507114,1730934643480,-500.0,0.0003863,14]
[341507115,1730934643489,-500.0,0.0003863,14]
[341507116,1730934643499,-500.0,0.0003863,14]
[341507117,1730934643508,-500.0,0.0003863,14]
[341507118,1730934643862,-640.11,0.0003863,14]
[341507119,1730934643883,-500.0,0.0003863,14]
[341507120,1730934643893,-500.0,0.0003863,14]
[341507121,1730934643903,-150.0,0.0003863,14]
[341507122,1730934643913,-500.0,0.0003863,14]
[341507123,1730934643923,-500.0,0.0003863,14]
[341507124,1730934643933,-586.47781095,0.0003863,14]
[341507125,1730934643943,-500.0,0.0003863,14]
[341507126,1730934643953,-551.38,0.0003863,14]
[341507127,1730934643963,-300.26437194,0.0003863,14]
[341507128,1730934644072,-928.33562806,0.0003863,14]
[341507129,1730934644081,-212.13963735,0.0003863,14]
[341507130,1730934644105,-526.97036265,0.0003863,14]
[341507131,1730934644119,-500.0,0.0003863,14]
[341507132,1730934644128,-500.0,0.0003863,14]
[341507133,1730934644138,-100.09955297,0.0003863,14]
[341507140,1730934645561,-500.0,0.0003862,14]
[341507141,1730934645571,-399.90044703,0.0003863,14]
[341507142,1730934645581,-500.0,0.0003863,14]
[341507143,1730934645591,-504.9673141,0.0003863,14]
[341507144,1730934645600,-2433.7,0.0003863,14]
[341507145,1730934645610,-500.0,0.0003863,14]
[341507146,1730934645620,-500.0,0.0003863,14]
[341507147,1730934645630,-1764.13,0.0003863,14]
[341507148,1730934645640,-500.0,0.0003863,14]
[341507149,1730934645649,-500.0,0.0003863,14]
[341507150,1730934645660,-500.0,0.0003863,14]
[341507151,1730934645669,-1500.32,0.0003863,14]
[341507152,1730934645680,-1034.49,0.0003863,14]
[341507153,1730934645691,-500.0,0.0003863,14]
[341507154,1730934645700,-500.0,0.0003863,14]
[341507155,1730934645711,-500.0,0.0003863,14]
[341507156,1730934645722,-500.0,0.0003863,14]
[341507157,1730934645732,-500.0,0.0003863,14]
[341507158,1730934645743,-500.0,0.0003863,14]
[341507159,1730934645754,-500.0,0.0003863,14]
[341507160,1730934645763,-500.0,0.0003863,14]
[341507161,1730934645774,-1073.65,0.0003863,14]
[341507162,1730934645784,-1657.31,0.0003863,14]
[341507163,1730934645794,-500.0,0.0003863,14]
[341507164,1730934645804,-627.27,0.0003863,14]
[341507165,1730934645815,-1309.94,0.0003863,14]
[341507166,1730934645825,-500.0,0.0003863,14]
[341507167,1730934645835,-828.1,0.0003863,14]
[341507168,1730934645846,-633.9,0.0003863,14]
[341507169,1730934645856,-500.0,0.0003863,14]
[341507170,1730934645866,-500.0,0.0003863,14]
[341507171,1730934645877,-1207.23,0.0003863,14]
[341507172,1730934645887,-500.0,0.0003863,14]
[341507173,1730934645897,-547.85,0.0003863,14]
[341507174,1730934645907,-504.52,0.0003863,14]
[341507175,1730934645916,-500.0,0.0003863,14]
[341507176,1730934645926,-467.95757383,0.0003863,14]
[341507178,1730934645947,-361.11242617,0.0003863,14]
[341507180,1730934645958,-784.92,0.0003863,14]
[341507182,1730934645968,-1355.14,0.0003863,14]
[341507184,1730934645978,-1049.74,0.0003863,14]
[341507186,1730934645987,-1066.47,0.0003863,14]
[341507188,1730934645997,-750.74,0.0003863,14]
[341507190,1730934646006,-1760.53,0.0003863,14]
[341507192,1730934646016,-192.63,0.00038693,120]
[341507194,1730934646026,-500.0,0.00038776,60]
[341507196,1730934646036,-500.0,0.00038776,60]
[341507199,1730934646046,-500.0,0.00038776,60]
[341507202,1730934646058,-210.80134354,0.00038803,2]
[341507203,1730934646069,-243.92477063,0.00038803,2]
[341507205,1730934646079,-358.4,0.00038878,120]
[341507207,1730934646090,-31712.7937492,0.00038884,3]
[341507210,1730934646100,-14835.27565553,0.00038892,3]
[341507214,1730934646145,-959.76253997,0.00038892,3]
[341507217,1730934646157,-681.46979088,0.00038892,3]
[341507219,1730934646166,-188.36022971,0.00038892,14]
[341507221,1730934646176,-7871.8546313,0.00038892,3]
[341507369,1730934667456,314.696854,0.00027397,2]
[341507370,1730934667761,314.696854,0.00027397,2]
[341507371,1730934669087,314.696854,0.00027671,2]
[341507372,1730934669143,314.696854,0.00027671,2]
[341507373,1730934669299,314.696854,0.00027945,2]
[341507374,1730934669586,314.696854,0.00027945,2]
[341507375,1730934669872,314.696854,0.00028219,2]
[341507376,1730934669902,738.318406,0.0003,2]
[341507377,1730934669926,773.549344,0.0003,2]
[341507378,1730934670142,1511.86775,0.0003,2]
[341507379,1730934670173,314.696854,0.00028493,2]
[341507380,1730934670463,314.696854,0.00028767,2]
[341507381,1730934670759,314.696854,0.00029041,2]
[341507382,1730934671060,314.696854,0.00029315,2]
[341507383,1730934671353,314.696854,0.00029589,2]
[341507384,1730934672124,314.696854,0.00029863,2]
[341507385,1730934672387,314.696854,0.00030136,2]
[341507386,1730934672700,314.696854,0.0003041,2]
[341507387,1730934673026,314.696854,0.00030684,2]
[341507388,1730934673173,242.71617,0.00027397,2]
[341507389,1730934673473,242.71617,0.00027397,2]
[341507390,1730934673762,242.71617,0.00027671,2]
[341507391,1730934674046,242.71617,0.00027671,2]
[341507392,1730934674767,242.71617,0.00027945,2]
[341507393,1730934675065,242.71617,0.00027945,2]
[341507394,1730934675356,242.71617,0.00028219,2]
[341507395,1730934675640,242.71617,0.00028493,2]
[341507396,1730934675932,242.71617,0.00028767,2]
[341507397,1730934676391,242.71617,0.00029041,2]
[341507398,1730934676676,242.71617,0.00029315,2]
[341507399,1730934676723,157.209229,0.00027397,2]
[341507400,1730934676960,242.71617,0.00029589,2]
[341507401,1730934677078,157.209229,0.00027671,2]
[341507402,1730934677248,242.71617,0.00029863,2]
[341507403,1730934677384,157.209229,0.00027945,2]
[341507404,1730934677539,242.71617,0.00030136,2]
[341507405,1730934677640,157.209229,0.00028767,2]
[341507406,1730934677843,242.71617,0.0003041,2]
[341507407,1730934677916,157.209229,0.00029315,2]
[341507408,1730934678150,242.71617,0.00030684,2]
[341507409,1730934678204,157.209229,0.00030136,2]
[341507410,1730934678493,157.209229,0.00030684,2]
[341507411,1730934678518,2204.0,0.000313,3]
[341507412,1730934679588,1983.0,0.000313,3]
[341507413,1730934681091,172.45,0.00030336,2]
[341507414,1730934681242,153.536664,0.00027397,2]
[341507415,1730934681521,153.536664,0.00027945,2]
[341507416,1730934681802,153.536664,0.00029041,2]
[341507417,1730934682091,153.536664,0.0003041,2]
[341507418,1730934721704,300.0,0.00019725,2]
[341507420,1730934786165,165.53,0.00015342,2]
[341507421,1730934798547,-250.0,0.00021,2]
[341507422,1730934807038,150.0,0.00018123,2]
[341507424,1730934842385,300.0,0.00019725,2]
[341507425,1730934968512,-600.0,0.000229,2]
[341507426,1730935317433,156.98,0.00015342,2]
[341507429,1730935509518,1116183.0,0.00016,2]
[341507430,1730935509541,9396477.31982103,0.00016,2]
[341507431,1730935510825,15857.7257186,0.000154,2]
[341507432,1730935520358,2171.12066442,9e-05,2]
[341507433,1730935530597,31502.60575166,0.000101,2]
[341507434,1730935532220,195.386559,0.000153,2]
[341507435,1730935535158,150.29389949,0.0001,2]
[341507436,1730935536746,155.0,0.00024,60]
[341507437,1730935537037,150.0,9e-05,2]
[341507438,1730935556210,28364.3645437,6.94e-05,2]
[341507439,1730935563444,-200.0,0.000228,2]
[341507440,1730935592533,856.48337091,0.00015,2]
[341507441,1730935605745,-92.80224055,0.000228,2]
[341507442,1730935605766,-400.11769945,0.000229,2]
[341507443,1730935624555,10000.0,0.00020431,2]
[341507444,1730935641181,-92.80224055,0.000229,2]
[341507445,1730935641203,-191.61562587,0.00023,2]
[341507446,1730935644782,1000.0,0.0001305,2]
[341507447,1730935644803,1000.0,0.0001305,2]
[341507448,1730935644823,1000.0,0.0001305,2]
[341507449,1730935644844,1000.0,0.0001305,2]
[341507450,1730935644867,1080.82473275,0.0001305,2]
[341507451,1730935645268,246.98061166,0.000101,2]
[341507452,1730935684725,753.01938834,0.00015,2]
[341507453,1730935684747,1000.0,0.00015,2]
[341507454,1730935684768,1000.0,0.00015,2]
[341507455,1730935684789,1000.0,0.00015,2]
[341507456,1730935684811,1000.0,0.00015,2]
[341507457,1730935684832,1000.0,0.00015,2]
[341507458,1730935684855,1313612.28009419,0.00015,2]
[341507459,1730935684883,1000000.0,0.00015,2]
[341507460,1730935684905,1000000.0,0.00015,2]
[341507461,1730935684931,4403664.00641062,0.00015,2]
[341507462,1730935693384,201.65049008,0.00015,2]
[341507465,1730935703284,400.0,0.000135,2]
[341507466,1730935703311,292.28122986,0.000125,2]
[341507467,1730935714067,552.24615207,0.00015235,2]
[341507468,1730935715370,14924.04948352,0.000129,2]
[341507469,1730935716509,150.0,0.0002,2]
[341507470,1730935718286,150.0,0.0002,2]
[341507471,1730935720960,212.69316981,0.0001,2]
[341507472,1730935722424,150.0,0.0002,2]
[341507473,1730935723313,150.0,0.0002,2]
[341507475,1730935724661,150.0,0.0002,2]
[341507476,1730935725139,5089.0,0.00015,2]
[341507477,1730935725335,150.0,0.0002,2]
[341507478,1730935726011,495.58377173,0.00015,2]
[341507479,1730935726340,150.0,0.0002,2]
[341507480,1730935727176,212.2871037,0.00013,2]
[341507481,1730935727523,150.0,0.0002,2]
[341507483,1730935727888,295.37022294,0.000151,2]
[341507493,1730935743268,150.0,0.0002,2]
[341507494,1730935745329,-108.38437413,0.00023,2]
[341507495,1730935745350,-350.0,0.00025,2]
[341507496,1730935745370,-1000.62755832,0.00025,2]
[341507497,1730935745397,-292.8022405,0.00025045,2]
[341507498,1730935745420,-400.0,0.00027,2]
[341507499,1730935745443,-292.8022405,0.00027291,2]
[341507500,1730935745466,-689.87,0.00027291,2]
[341507501,1730935745488,-450.0,0.00029,2]
[341507502,1730935745510,-170.43,0.00029,2]
[341507503,1730935745531,-292.8022405,0.00029536,2]
[341507504,1730935745553,-500.0,0.00031,2]
[341507505,1730935745573,-4529.0,0.000311,3]
[341507506,1730935745600,-124469.9274,0.0003153,7]
[341507507,1730935751168,4128.90436269,0.00027,2]
[341507508,1730935751190,1525.74854645,0.00027,2]
[341507509,1730935760851,150.0,0.0002,2]
[341507514,1730935770094,-6884.380734,0.0003153,7]
[341507515,1730935789844,150.0,0.0002,2]
[341507516,1730935790672,150.0,0.0002,2]
[341507520,1730935802732,200.0,0.00023,2]
[341507526,1730935831684,-11549.0,0.000315,5]
[341507527,1730935831694,-300.0,0.00031529,2]
[341507529,1730935831704,-979.85690126,0.0003153,7]
[341507532,1730935831896,-4500.0,0.0003153,7]
[341507533,1730935831908,-1853.41867892,0.0003153,7]
[341507534,1730935831919,-3085.56798374,0.0003153,7]
[341507535,1730935831936,-299.6900001,0.0003153,7]
[341507536,1730935831975,-915.94,0.0003153,7]
[341507544,1730935837724,-500.0,0.00031529,2]
[341507545,1730935837734,-98.60501061,0.00031529,2]
[341507546,1730935837746,-401.39498939,0.00031529,2]
[341507547,1730935837756,-500.0,0.00031529,2]
[341507548,1730935837765,-500.0,0.00031529,2]
[341507549,1730935837774,-260.21552265,0.00031529,2]
[341507550,1730935837783,-2702.30948796,0.0003153,7]
[341507551,1730935837794,-500.0,0.0003153,7]
[341507552,1730935837806,-3202.5051332,0.0003153,7]
[341507553,1730935837915,-20462.67130877,0.0003153,7]
[341507554,1730935837926,-1473.00163474,0.0003153,7]
[341507555,1730935837938,-1589.84433967,0.0003153,7]
[341507556,1730935837949,-3664.20891962,0.0003153,7]
[341507557,1730935837967,-3699.92785534,0.0003153,7]
[341507558,1730935837978,-1562.92844443,0.0003153,7]
[341507576,1730935839668,-3185.65302144,0.0003153,7]
[341507577,1730935839750,-1244.09212786,0.0003153,7]
[341507578,1730935839784,-4585.61004632,0.0003153,7]
[341507579,1730935839824,-319.196952,0.0003153,7]
[341507580,1730935839866,-7987.6482867,0.0003153,7]
[341507581,1730935839905,-1362.7092578,0.0003153,7]
[341507582,1730935839916,-6397.59743002,0.0003153,7]
[341507583,1730935839946,-281.77499999,0.0003153,7]
[341507608,1730935842861,-120.52737857,0.0003153,7]
[341507609,1730935842872,-9817.2092358,0.0003153,7]
[341507610,1730935842883,-4941.29660563,0.0003153,7]
[341507611,1730935842915,-396.57655836,0.0003153,7]
[341507612,1730935843047,-15929.17199583,0.0003153,7]
[341507613,1730935843058,-3444.25431299,0.0003153,7]
[341507614,1730935843069,-156598.40920434,0.0003153,7]
[341507615,1730935843078,-500.0,0.000316,2]
[341507616,1730935843353,-292.8022405,0.00031782,2]
[341507617,1730935843363,-160.32,0.00032879,120]
[341507618,1730935843373,-325.26,0.00032879,2]
[341507619,1730935843382,-534.06609381,0.0003297,2]
[341507620,1730935843391,-599.121,0.00033574,2]
[341507621,1730935843400,-468.47,0.00033584,2]
[341507622,1730935843409,-292.8022405,0.00034027,2]
[341507623,1730935843419,-180.68,0.00034037,2]
[341507624,1730935843428,-500.0,0.00034421,120]
[341507625,1730935843437,-545.724,0.00034473,2]
[341507626,1730935843447,-150.0,0.00034473,2]
[341507629,1730935843456,-3788.48,0.00034807,2]
[341507631,1730935843465,-517.17,0.00034849,2]
[341507633,1730935843475,-861.84,0.00034895,2]
[341507635,1730935843483,-800.0,0.00034938,2]
[341507637,1730935843499,-1314.54,0.00034938,2]
[341507639,1730935843508,-250.0,0.00034996,2]
[341507641,1730935843518,-15100.0,0.00035041,2]
[341507642,1730935843527,-424.14,0.00035041,2]
[341507644,1730935843538,-159.417,0.00035303,41]
[341507646,1730935843548,-519.9,0.00035384,2]
[341507647,1730935843557,-1111.12,0.00035397,2]
[341507648,1730935843567,-6408.1603271,0.00035399,2]
[341507649,1730935843576,-6408.1603271,0.00035404,2]
[341507650,1730935843585,-192.14,0.00035413,2]
[341507651,1730935843595,-156.46,0.00035415,2]
[341507652,1730935843604,-361.28667125,0.00035415,2]
[341507653,1730935843614,-6408.1603271,0.00035421,2]
[341507654,1730935843623,-1578.415,0.00035452,42]
[341507655,1730935843632,-361.28667125,0.00035454,2]
[341507656,1730935843642,-216.52,0.00035455,120]
[341507657,1730935843651,-361.28667125,0.00035457,2]
[341507658,1730935843661,-361.28667125,0.0003546,2]
[341507659,1730935843670,-361.28667125,0.00035464,2]
[341507660,1730935843679,-6408.1603271,0.00035465,2]
[341507661,1730935843689,-200.0,0.00035475,2]
[341507662,1730935843698,-250.0,0.00035487,120]
[341507663,1730935843707,-200.0,0.00035492,7]
[341507664,1730935843717,-6408.1603271,0.00035492,2]
[341507665,1730935843727,-6408.1603271,0.00035498,2]
[341507666,1730935843743,-361.28667125,0.000355,2]
[341507667,1730935843753,-200.0,0.00035506,2]
[341507668,1730935843762,-286.72,0.00035524,120]
[341507669,1730935843771,-1484.67,0.000356,2]
[341507670,1730935843781,-173.36,0.00035703,120]
[341507671,1730935843790,-250.0,0.00035726,2]
[341507672,1730935843799,-6275.32,0.00035794,2]
[341507673,1730935843810,-195.65,0.00035799,120]
[341507674,1730935843819,-468.47,0.00035848,2]
[341507675,1730935843828,-200.0,0.0003586,2]
[341507676,1730935843847,-722.64,0.00036042,2]
[341507677,1730935843870,-209.0,0.0003612,30]
[341507678,1730935843892,-195.72,0.00036166,2]
[341507679,1730935843915,-292.8022405,0.00036273,2]
[341507680,1730935843937,-13045.9764,0.000364,2]
[341507681,1730935843958,-500.0,0.00036521,120]
[341507682,1730935843980,-296.76,0.00036544,120]
[341507683,1730935844000,-700.0,0.00036644,13]
[341507684,1730935844023,-700.0,0.00036644,13]
[341507685,1730935844044,-700.0,0.00036644,13]
[341507686,1730935844067,-420.40443313,0.00036644,13]
[341507687,1730935844089,-700.0,0.00036658,13]
[341507688,1730935844101,-700.0,0.00036658,13]
[341507689,1730935844111,-700.0,0.00036658,13]
[341507690,1730935844120,-700.0,0.00036658,13]
[341507691,1730935844130,-700.0,0.00036658,13]
[341507692,1730935844139,-23900.0,0.0003675,2]
[341507693,1730935844148,-209.0,0.00037,30]
[341507694,1730935844157,-3860.02202606,0.00037,120]
[341507695,1730935844167,-22694.19588945,0.00037,2]
[341507696,1730935844177,-166.86,0.00037162,2]
[341507697,1730935844186,-25773.95317528,0.0003777,3]
[341507698,1730935844195,-153.72,0.000378,31]
[341507699,1730935844204,-153.72,0.000378,31]
[341507700,1730935844214,-180.68,0.00037865,2]
[341507701,1730935844223,-209.0,0.0003789,30]
[341507702,1730935844232,-468.47,0.00038111,2]
[341507703,1730935844242,-173.36,0.00038287,120]
[341507704,1730935844252,-150.110708,0.00038298,30]
[341507705,1730935844261,-311.55302257,0.00038298,2]
[341507706,1730935844270,-1013.58,0.000383,28]
[341507707,1730935844280,-561.33,0.00038356,14]
[341507708,1730935844289,-500.0,0.00038356,14]
[341507709,1730935844299,-150.110708,0.00038398,37]
[341507710,1730935844308,-2047.14869249,0.0003841,15]
[341507711,1730935844319,-322.2292,0.0003841,2]
[341507712,1730935844329,-551.621,0.0003843,2]
[341507713,1730935844338,-150.110708,0.00038498,48]
[341507714,1730935844347,-163.91294,0.000385,2]
[341507715,1730935844356,-27214.25203113,0.0003851,2]
[341507716,1730935844366,-569.7443,0.00038518,2]
[341507717,1730935844375,-292.8022405,0.00038518,2]
[341507718,1730935844385,-2849.73180896,0.00038598,16]
[341507719,1730935844394,-199.5219225,0.00038598,2]
[341507720,1730935844403,-901.14,0.00038608,14]
[341507721,1730935844412,-1428.18,0.00038608,14]
[341507722,1730935844422,-500.0,0.00038608,14]
[341507723,1730935844431,-500.0,0.00038608,14]
[341507724,1730935844440,-500.0,0.00038608,14]
[341507725,1730935844450,-500.0,0.00038608,14]
[341507726,1730935844459,-500.0,0.00038608,14]
[341507727,1730935844468,-500.0,0.00038608,14]
[341507728,1730935844478,-500.0,0.00038608,14]
[341507729,1730935844490,-500.0,0.00038608,14]
[341507730,1730935844502,-500.0,0.00038608,14]
[341507731,1730935844511,-500.0,0.00038608,14]
[341507732,1730935844521,-500.0,0.00038608,14]
[341507733,1730935844531,-500.0,0.00038608,14]
[341507734,1730935844540,-559.0,0.00038608,14]